bitfinex-derivatives/quotes_ETHF0:USTF0_20250606
["timestamp","ask_amount","ask_price","bid_price","bid_amount"]
[1749199835366,3.21388433,2461.2,2461.1,7.85887]
[1749199835761,3.21388433,2461.2,2461.1,12.64387]
[1749199836170,3.21388433,2461.2,2461.1,7.64387]
[1749199839970,0.00608433,2461.2,2461.1,7.64387]
[1749199843974,3.2078,2461.8,2461.7,0.81207]
[1749199844176,0.81199,2462.0,2461.9,0.81198]
[1749199844381,0.81199,2462.0,2461.6,4.868]
[1749199844382,0.81193,2462.2,2461.8,6.8981]
[1749199844582,0.81193,2462.2,2462.1,0.8119]
[1749199844875,0.8119,2462.3,2462.2,0.81188]
[1749199845069,4.02575433,2462.4,2462.3,0.81188]
[1749199845272,4.02575433,2462.4,2462.3,1.46118]
[1749199845473,4.02575433,2462.4,2462.3,3.44708]
[1749199848681,3.21388433,2462.4,2462.3,3.44708]
[1749199848983,3.2078,2463.0,2462.9,0.81166]
[1749199849282,4.01945,2463.0,2462.9,0.81166]
[1749199849491,4.01945,2463.0,2462.9,3.43096]
[1749199849784,3.2078,2463.0,2462.9,3.43096]
[1749199850186,0.81163,2463.1,2463.0,0.81165]
[1749199850578,0.81165,2463.0,2462.9,3.43095]
[1749199851888,0.81164,2463.1,2463.0,0.81162]
[1749199852483,0.81164,2463.1,2463.0,2.21022]
[1749199852680,0.81767433,2463.2,2463.1,0.81161]
[1749199853081,0.00608433,2463.2,2463.1,0.81161]
[1749199853287,0.81766433,2463.2,2463.1,0.81161]
[1749199853786,0.81766433,2463.2,2463.1,41.61161]
[1749199854179,0.81766433,2463.2,2463.1,40.8]
[1749199855789,0.81168,2462.9,2462.8,3.2078]
[1749199856286,0.81168,2462.9,2462.8,44.81951]
[1749199858889,0.81167,2463.0,2462.9,0.81164]
[1749199860384,1.45494,2463.1,2463.0,0.81164]
[1749199861292,0.81164,2463.0,2462.9,1.48437]
[1749199862987,0.81164,2463.1,2463.0,0.81165]
[1749199863189,0.00608433,2463.2,2463.1,0.81161]
[1749199863988,0.6754,2463.6,2463.2,2.02889]
[1749199864185,8.74,2464.2,2463.9,0.81132]
[1749199864390,0.8114,2463.8,2463.7,0.81139]
[1749199864594,0.81145,2463.7,2463.5,4.866]
[1749199864796,0.81145,2463.7,2463.6,0.81142]
[1749199866002,0.81145,2463.6,2463.5,5.67746]
[1749199866899,0.81145,2463.6,2463.5,4.866]
[1749199867787,0.81148,2463.5,2463.4,0.00608433]
[1749199868091,3.51108,2463.5,2463.4,0.00608433]
[1749199869590,9.42002136,2463.5,2463.4,0.00608433]
[1749199870995,0.81158,2463.2,2463.1,0.07133351]
[1749199871297,4.01938,2463.2,2463.1,0.07133351]
[1749199872492,4.92964458,2463.2,2463.1,0.07133351]
[1749199873695,4.92964458,2463.2,2463.1,0.88294351]
[1749199874894,4.01938,2463.2,2463.1,0.88294351]
[1749199875292,4.93083805,2463.2,2463.1,0.07133351]
[1749199875695,4.01938,2463.2,2463.1,0.07133351]
[1749199877496,4.93196136,2463.2,2463.1,0.07133351]
[1749199879999,0.81158,2463.2,2463.1,0.07133351]
[1749199880202,3.8551,2463.5,2463.1,0.07133351]
[1749199880399,0.81155,2463.4,2463.3,0.81155]
[1749199881604,0.81155,2463.3,2463.2,3.47856]
[1749199882805,0.81155,2463.3,2463.2,0.638]
[1749199883004,0.81158,2463.2,2463.1,0.07133351]
[1749199883207,4.01938,2463.2,2463.1,0.07133351]
[1749199888515,4.01938,2463.2,2463.1,0.88294351]
[1749199888715,3.2078,2463.2,2463.1,0.88294351]
[1749199889122,0.81156,2463.3,2463.2,0.81158]
[1749199889322,0.81156,2463.3,2463.2,1.50568]
[1749199889822,0.81156,2463.3,2463.2,2.0166]
[1749199890018,0.81156,2463.3,2463.2,0.6941]
[1749199892424,4.01934,2463.4,2463.3,0.81155]
[1749199892725,4.01934,2463.4,2463.3,2.12005]
[1749199893117,4.01934,2463.4,2463.3,1.3085]
[1749199893322,0.81155,2463.3,2463.2,1.50565]
[1749199893929,0.81155,2463.3,2463.2,0.6941]
[1749199895625,1.72510937,2463.3,2463.2,0.6941]
[1749199897428,1.72510937,2463.3,2463.2,1.50568]
[1749199898126,0.91355937,2463.3,2463.2,1.50568]
[1749199898329,4.01934,2463.4,2463.3,0.81155]
[1749199898530,4.93692916,2463.4,2463.3,0.81155]
[1749199898728,4.12538916,2463.4,2463.3,2.19058351]
[1749199898929,4.93689916,2463.4,2463.3,2.19058351]
[1749199900228,0.81151,2463.4,2463.3,2.19058351]
[1749199900923,1.72888323,2463.4,2463.3,2.19058351]
[1749199901624,0.81151,2463.4,2463.3,2.19058351]
[1749199902034,1.72883432,2463.4,2463.3,2.19058351]
[1749199902226,0.81151,2463.4,2463.3,2.19058351]
[1749199902627,1.72895678,2463.4,2463.3,2.19058351]
[1749199903030,1.72895678,2463.4,2463.3,0.88288351]
[1749199906132,0.81151,2463.4,2463.3,2.16468351]
[1749199909431,0.81151,2463.5,2463.4,0.81147]
[1749199909632,1.72932763,2463.5,2463.4,0.81147]
[1749199911638,0.81151,2463.4,2463.3,2.16465351]
[1749199912637,0.81151,2463.4,2463.3,0.88285351]
[1749199912936,0.81151,2463.4,2463.3,0.07133351]
[1749199913135,0.81151,2463.4,2463.3,0.88288351]
[1749199913337,1.72926208,2463.4,2463.3,0.88288351]
[1749199915335,1.72926208,2463.4,2463.3,0.5784501]
[1749199916040,1.72926208,2463.4,2463.3,0.64978361]
[1749199917237,1.72926208,2463.4,2463.3,0.88288351]
[1749199920142,0.91775208,2463.4,2463.3,0.88288351]
[1749199920342,1.72926208,2463.4,2463.3,2.26758351]
[1749199920842,0.91775208,2463.4,2463.3,2.26758351]
[1749199921042,1.72926208,2463.4,2463.3,2.26758351]
[1749199922646,0.91775208,2463.4,2463.3,2.26758351]
[1749199922945,1.72926208,2463.4,2463.3,2.26758351]
[1749199924738,1.72926208,2463.4,2463.3,0.07133351]
[1749199925144,3.07396208,2463.4,2463.3,0.07133351]
[1749199927850,1.72926208,2463.4,2463.3,0.07133351]
[1749199929142,1.7287525,2463.4,2463.3,0.07133351]
[1749199930746,3.0257525,2463.4,2463.3,0.07133351]
[1749199932447,1.7287525,2463.4,2463.3,0.07133351]
[1749199933453,3.0601525,2463.4,2463.3,0.07133351]
[1749199938053,0.81161,2463.1,2463.0,0.687]
[1749199938551,0.81161,2463.1,2462.9,0.00608433]
[1749199938552,0.81165,2463.0,2462.9,0.00608433]
[1749199939051,0.81165,2463.0,2462.9,0.81776433]
[1749199939252,0.81165,2463.0,2462.9,2.15146433]
[1749199940154,0.81165,2463.0,2462.9,1.33978433]
[1749199940356,1.7282915,2463.0,2462.9,1.33978433]
[1749199941055,1.7282915,2463.0,2462.9,0.00608433]
[1749199942852,0.81181,2462.5,2462.4,0.6585]
[1749199943052,1.7284515,2462.5,2462.4,0.6585]
[1749199943546,2.4092515,2462.5,2462.4,0.6585]
[1749199944353,0.81184,2462.4,2462.3,0.65]
[1749199944551,1.7284815,2462.4,2462.3,0.65]
[1749199944948,0.81184,2462.4,2462.3,2.0151]
[1749199948957,0.81184,2462.4,2462.3,2.82695]
[1749199952260,0.00608433,2462.6,2462.3,2.0151]
[1749199952564,0.00608433,2462.6,2462.5,0.81181]
[1749199952759,0.81786433,2462.6,2462.5,0.81181]
[1749199953062,0.81786433,2462.6,2462.5,42.95291]
[1749199953464,0.81786433,2462.6,2462.5,2.15291]
[1749199954866,0.81786433,2462.6,2462.5,2.22424351]
[1749199955367,0.00608433,2462.6,2462.5,2.22424351]
[1749199955759,0.00608433,2462.6,2462.5,7.22424351]
[1749199956462,0.00608433,2462.6,2462.5,4.64580037]
[1749199956659,0.00608433,2462.6,2462.5,9.44880037]
[1749199957665,0.00608433,2462.6,2462.5,14.44880037]
[1749199957870,0.00608433,2462.6,2462.5,12.02724351]
[1749199958458,0.00608433,2462.6,2462.5,7.02724351]
[1749199960862,0.81165,2463.1,2463.0,0.81161]
[1749199961668,0.81165,2463.1,2463.0,1.45891]
[1749199961870,0.81165,2463.1,2463.0,1.45895]
[1749199963571,0.81165,2463.1,2463.0,0.6473]
[1749199963766,0.81165,2463.1,2463.0,1.45895]
[1749199965074,0.81165,2463.1,2463.0,0.6473]
[1749199965572,0.81165,2463.0,2462.9,1.49646]
[1749199965876,0.81165,2463.0,2462.9,0.6848]
[1749199966467,0.81171,2462.8,2462.7,3.2078]
[1749199967270,0.81171,2462.8,2462.7,4.01954]
[1749199970872,0.81171,2462.8,2462.7,4.09087351]
[1749199972683,0.81171,2462.8,2462.7,3.27913351]
[1749199972980,0.81171,2462.8,2462.7,4.09087351]
[1749199974075,0.6813,2462.9,2462.8,0.81171]
[1749199974478,0.8117,2463.0,2462.9,0.81165]
[1749199976975,0.81171,2462.8,2462.7,0.88306351]
[1749199977481,0.81171,2462.8,2462.7,0.07133351]
[1749199977982,2.09901,2462.8,2462.7,0.07133351]
[1749199978774,2.09901,2462.8,2462.7,0.88307351]
[1749199979177,0.81171,2462.8,2462.7,0.88307351]
[1749199980482,0.81171,2462.8,2462.7,3.30563476]
[1749199986282,0.81171,2462.8,2462.7,0.88307351]
[1749199986682,0.81171,2462.8,2462.7,2.5015708]
[1749199987278,0.81171,2462.8,2462.7,0.07133351]
[1749199987482,0.81171,2462.8,2462.7,2.5015708]
[1749199987687,0.81171,2462.8,2462.7,0.07133351]
[1749199988089,8.09797299,2462.8,2462.7,0.07133351]
[1749199988289,0.81184,2462.4,2462.3,2.43023729]
[1749199988778,0.81188,2462.3,2462.2,3.11722162]
[1749199988979,10.43300434,2462.3,2462.2,0.00608433]
[1749199989181,0.81197,2462.0,2461.9,2.43023729]
[1749199989786,0.81201,2461.9,2461.8,3.24225729]
[1749199990477,0.81201,2461.9,2461.8,2.43023729]
[1749199990676,5.23778,2462.0,2461.6,1.38238433]
[1749199990883,0.81207,2461.7,2461.6,1.38238433]
[1749199992088,0.81207,2461.7,2461.6,0.70148433]
[1749199992278,0.81207,2461.7,2461.6,0.00608433]
[1749199995388,0.81207,2461.7,2461.6,0.81819433]
[1749199995585,0.81207,2461.7,2461.6,0.00608433]
[1749199996584,0.81207,2461.7,2461.6,0.81819433]
[1749199998180,0.81207,2461.7,2461.6,0.00608433]
[1749199999292,0.81207,2461.7,2461.6,0.07741784]
[1749200001396,0.81207,2461.7,2461.6,0.88952784]
[1749200001611,4.795,2461.7,2461.6,0.88952784]
[1749200001788,0.81207,2461.8,2461.7,0.81205]
[1749200003100,0.81207,2461.8,2461.6,0.07741784]
[1749200003101,0.81207,2461.7,2461.6,0.07741784]
[1749200003305,0.81207,2461.7,2461.6,0.88952784]
[1749200005095,4.01987,2461.7,2461.6,0.07741784]
[1749200012611,8.81487,2461.7,2461.6,0.07741784]
[1749200014913,8.81487,2461.7,2461.6,0.88952784]
[1749200015209,4.01987,2461.7,2461.6,0.88952784]
[1749200015605,0.81207,2461.7,2461.6,0.07741784]
[1749200016113,0.81207,2461.7,2461.6,0.88952784]
[1749200016312,0.81207,2461.7,2461.6,2.25352784]
[1749200018713,0.81207,2461.7,2461.6,1.44141784]
[1749200019921,0.81207,2461.7,2461.6,2.25352784]
[1749200023424,0.81207,2461.7,2461.6,4.68376513]
[1749200023925,0.81207,2461.7,2461.6,2.25352784]
[1749200024223,0.81207,2461.7,2461.6,1.44141784]
[1749200024412,0.81207,2461.7,2461.6,2.25352784]
[1749200027326,0.81207,2461.7,2461.6,1.44141784]
[1749200027524,0.81207,2461.7,2461.6,2.25352784]
[1749200028924,0.81207,2461.7,2461.6,1.44141784]
[1749200029125,4.01987,2461.7,2461.6,0.07741784]
[1749200029327,4.93842547,2461.7,2461.6,0.07741784]
[1749200035326,1.73062547,2461.7,2461.6,0.88952784]
[1749200035631,0.81207,2461.7,2461.6,2.18062784]
[1749200037732,0.81207,2461.7,2461.6,1.36851784]
[1749200038826,1.7308674,2461.7,2461.6,2.18062784]
[1749200040031,1.7308674,2461.7,2461.6,2.10929433]
[1749200040238,0.81207,2461.7,2461.6,0.00608433]
[1749200040640,0.81207,2461.7,2461.6,0.81819433]
[1749200040839,1.73100433,2461.7,2461.6,0.00608433]
[1749200041137,1.73100433,2461.7,2461.6,0.88952784]
[1749200041437,1.73100433,2461.7,2461.6,0.07741784]
[1749200042338,1.73100433,2461.7,2461.6,0.88952784]
[1749200042537,0.81207,2461.7,2461.6,3.31976513]
[1749200043043,0.81207,2461.7,2461.6,0.07741784]
[1749200043337,1.73116781,2461.7,2461.6,2.50765513]
[1749200044533,1.73116781,2461.7,2461.6,0.07741784]
[1749200048647,4.93896781,2461.7,2461.6,0.07741784]
[1749200048945,9.73296781,2461.7,2461.6,0.07741784]
[1749200049438,10.38166781,2461.7,2461.6,0.07741784]
[1749200051845,5.58766781,2461.7,2461.6,0.07741784]
[1749200052149,4.93896781,2461.7,2461.6,0.07741784]
[1749200052341,4.93896781,2461.7,2461.6,0.88952784]
[1749200052537,4.12689781,2461.7,2461.6,41.68952784]
[1749200052740,4.01987,2461.7,2461.6,41.68952784]
[1749200053142,3.2078,2461.7,2461.6,43.66602784]
[1749200053643,3.2078,2462.0,2461.9,0.81197]
[1749200054047,0.81802433,2462.1,2462.0,0.81198]
[1749200055345,0.81802433,2462.1,2462.0,2.08928]
[1749200055544,0.81802433,2462.1,2462.0,1.2773]
[1749200057150,0.81201,2461.9,2461.8,3.12936606]
[1749200057450,0.81201,2461.9,2461.8,4.40666606]
[1749200057650,0.81201,2461.9,2461.8,1.9729]
[1749200058448,0.81201,2461.9,2461.8,2.78494]
[1749200060351,0.81806433,2462.1,2462.0,0.81198]
[1749200060949,0.812,2462.0,2461.9,0.81198]
[1749200061149,0.812,2462.0,2461.9,2.16418]
[1749200063755,0.81803433,2462.1,2462.0,0.81197]
[1749200065152,0.00608433,2462.1,2462.0,0.81197]
[1749200065656,0.81802433,2462.1,2462.0,0.81197]
[1749200067655,0.81802433,2462.1,2462.0,1.49077]
[1749200068146,0.81802433,2462.1,2462.0,0.6788]
[1749200075260,0.81802433,2462.1,2462.0,1.49077]
[1749200075457,3.2078,2462.4,2462.1,2.02985]
[1749200075668,0.81187,2462.4,2462.3,0.81186]
[1749200076166,0.81183,2462.5,2462.4,0.81181]
[1749200076357,0.81183,2462.5,2462.4,2.84071]
[1749200076662,0.81183,2462.5,2462.4,2.0289]
[1749200077756,0.81183,2462.5,2462.1,2.42866815]
[1749200077757,0.81191,2462.2,2462.1,0.81191]
[1749200077957,0.81191,2462.2,2462.1,1.47491]
[1749200078157,0.81191,2462.2,2462.1,2.85791]
[1749200079361,0.81191,2462.2,2462.1,1.47491]
[1749200081661,0.81191,2462.2,2462.1,3.90357815]
[1749200082852,0.81191,2462.2,2462.1,3.09166815]
[1749200083163,0.81191,2462.2,2462.1,0.81194]
[1749200083862,0.81191,2462.2,2462.1,3.24060815]
[1749200084362,0.81191,2462.2,2462.1,2.42866815]
[1749200084562,0.81191,2462.2,2462.1,3.24060815]
[1749200084755,0.81191,2462.2,2462.1,2.42866815]
[1749200084956,0.81194,2462.1,2462.0,9.54670351]
[1749200085863,0.81194,2462.1,2462.0,6.37695383]
[1749200086059,0.81194,2462.1,2462.0,0.07133351]
[1749200086262,4.91561489,2462.1,2462.0,0.07133351]
[1749200086761,6.31451489,2462.1,2462.0,0.07133351]
[1749200090665,5.41864,2462.1,2462.0,0.07133351]
[1749200090962,24.87629688,2462.1,2462.0,0.07133351]
[1749200091168,0.81207,2461.7,2461.6,3.13200465]
[1749200091464,0.81207,2461.7,2461.6,2.43830465]
[1749200092171,0.81207,2461.7,2461.6,0.00608433]
[1749200092964,0.81207,2461.7,2461.6,2.43830465]
[1749200093560,0.81207,2461.7,2461.6,0.00608433]
[1749200093762,4.01987,2461.7,2461.6,0.00608433]
[1749200094166,4.91441822,2461.7,2461.6,0.00608433]
[1749200097072,9.70241822,2461.7,2461.6,0.00608433]
[1749200097370,9.70241822,2461.7,2461.1,3.09632032]
[1749200097371,0.81224,2461.2,2461.1,0.6641]
[1749200097562,0.81224,2461.2,2461.1,1.47637]
[1749200097964,0.81224,2461.2,2461.1,0.6641]
[1749200099263,0.81224,2461.2,2461.1,1.47636]
[1749200099463,0.81224,2461.2,2461.1,2.77396]
[1749200099867,0.00608433,2461.4,2461.1,1.9617]
[1749200100168,0.00608433,2461.4,2461.3,4.02001]
[1749200100363,0.00608433,2461.4,2461.3,6.45223032]
[1749200100669,0.81201,2461.9,2461.8,0.812]
[1749200101073,0.81201,2461.9,2461.8,2.42927012]
[1749200101262,2.02962,2462.4,2461.8,11.36998]
[1749200101565,0.81193,2462.2,2462.1,4.01972]
[1749200101764,0.81193,2462.2,2462.1,46.81182]
[1749200103770,0.81193,2462.2,2462.1,47.51112]
[1749200104073,0.81798433,2462.3,2462.2,0.81191]
[1749200104275,0.00608433,2462.3,2462.2,2.13881]
[1749200105166,0.81176,2462.7,2462.2,9.56471519]
[1749200105370,0.81178,2462.6,2462.5,4.0196]
[1749200105574,0.81181,2462.5,2462.4,4.788]
[1749200105776,0.81181,2462.5,2462.4,6.1149]
[1749200106575,0.8118,2462.6,2462.4,6.1149]
[1749200106769,0.81181,2462.5,2462.4,6.92672]
[1749200106977,0.81181,2462.5,2462.4,6.1149]
[1749200107676,0.81181,2462.5,2462.4,6.92674]
[1749200109672,0.81181,2462.5,2462.4,6.1139]
[1749200109974,0.81181,2462.5,2462.4,6.92574]
[1749200111179,0.81780549,2462.7,2462.6,0.81178]
[1749200111478,0.81178,2462.6,2462.5,3.2078]
[1749200112876,0.81181,2462.5,2462.4,6.92572]
[1749200117380,0.81181,2462.5,2462.4,47.72572]
[1749200119982,0.8118,2462.6,2462.5,0.81178]
[1749200120181,0.00605549,2462.7,2462.6,0.81178]
[1749200120385,0.6888,2463.1,2463.0,0.81165]
[1749200120580,3.2078,2463.3,2463.1,0.8116]
[1749200120886,0.81161,2463.2,2463.1,0.8116]
[1749200122482,4.01937,2463.3,2463.2,0.81158]
[1749200122684,0.81162,2463.2,2463.1,0.81159]
[1749200122985,0.81165,2463.1,2463.0,0.81162]
[1749200123193,0.81165,2463.1,2463.0,2.11682]
[1749200123883,0.81165,2463.0,2462.9,1.50806]
[1749200124084,0.81165,2463.0,2462.9,0.6964]
[1749200124284,0.81168,2462.9,2462.8,0.8117]
[1749200125789,1.50798,2463.0,2462.9,0.81168]
[1749200126091,0.6963,2463.0,2462.9,0.81168]
[1749200126387,1.50795,2463.0,2462.9,0.81168]
[1749200127785,0.81171,2462.9,2462.8,0.81169]
[1749200128489,0.6963,2463.0,2462.7,4.783]
[1749200128490,0.81171,2462.8,2462.7,5.59473]
[1749200128691,0.81178,2462.6,2462.5,5.59479]
[1749200129395,0.81178,2462.6,2462.5,46.39479]
[1749200129692,0.81178,2462.6,2462.5,5.59479]
[1749200130189,0.81178,2462.6,2462.5,4.783]
[1749200130493,0.81178,2462.6,2462.5,5.59481]
[1749200130688,0.81181,2462.5,2462.4,3.3090587]
[1749200131094,0.8118,2462.6,2462.5,0.81178]
[1749200132194,0.8118,2462.6,2462.5,3.23768519]
[1749200133095,0.8118,2462.6,2462.5,2.43073833]
[1749200135587,0.8118,2462.6,2462.5,2.50207184]
[1749200136892,0.8118,2462.6,2462.5,0.07133351]
[1749200137392,2.841,2462.6,2462.5,0.07133351]
[1749200138995,7.624,2462.6,2462.5,0.07133351]
[1749200142499,8.51859922,2462.6,2462.5,0.07133351]
[1749200143794,27.06959922,2462.6,2462.5,0.07133351]
[1749200146102,26.175,2462.6,2462.5,0.07133351]
[1749200146501,27.06917127,2462.6,2462.5,0.07133351]
[1749200146802,26.175,2462.6,2462.5,0.07133351]
[1749200147006,24.8072,2462.6,2462.5,0.07133351]
[1749200147500,6.2562,2462.6,2462.5,0.07133351]
[1749200150400,0.81178,2462.6,2462.5,0.88311351]
[1749200150603,0.6863,2463.0,2462.5,0.07133351]
[1749200150902,0.81173,2462.8,2462.7,0.81173]
[1749200151091,0.81173,2462.8,2462.7,2.16583]
[1749200151295,0.81171,2462.8,2462.7,2.16583]
[1749200151905,0.81171,2462.8,2462.7,1.3541]
[1749200152299,0.81171,2462.8,2462.7,2.16584]
[1749200154105,0.81171,2462.8,2462.7,1.3541]
[1749200155406,0.81171,2462.8,2462.7,2.16584]
[1749200158203,0.81171,2462.8,2462.7,3.78330023]
[1749200160710,0.8117,2462.9,2462.8,0.81168]
[1749200161005,0.8117,2462.9,2462.8,2.17498]
[1749200161210,0.8117,2462.9,2462.8,3.79244023]
[1749200161400,4.01943,2463.1,2463.0,0.81165]
[1749200161605,0.81165,2463.0,2462.9,3.76293103]
[1749200162099,0.81165,2463.0,2462.9,2.95127103]
[1749200162307,0.81165,2463.0,2462.9,3.76295103]
[1749200162607,0.81165,2463.0,2462.9,2.14378]
[1749200163409,0.81165,2463.0,2462.9,1.3321]
[1749200163609,0.81165,2463.0,2462.9,2.14378]
[1749200164003,0.81165,2463.0,2462.9,1.3321]
[1749200164910,0.81168,2462.9,2462.8,1.61917103]
[1749200165110,0.81168,2462.9,2462.8,2.89197103]
[1749200167311,0.81168,2462.9,2462.8,1.2728]
[1749200167809,0.81168,2462.9,2462.8,2.08451]
[1749200168407,0.81168,2462.9,2462.8,3.70368103]
[1749200168608,0.81166,2463.0,2462.9,0.81165]
[1749200168810,0.81166,2463.0,2462.9,2.10555]
[1749200169111,0.81166,2463.0,2462.9,2.17688351]
[1749200170205,3.2078,2463.1,2463.0,0.81165]
[1749200170411,4.01944,2463.1,2463.0,1.4005]
[1749200170908,4.01944,2463.1,2463.0,2.21215]
[1749200173106,4.01944,2463.1,2463.0,1.4005]
[1749200173508,4.01944,2463.1,2463.0,2.21214]
[1749200174009,4.01944,2463.1,2463.0,1.4005]
[1749200175713,0.81165,2463.0,2462.9,0.88299351]
[1749200176107,0.81165,2463.0,2462.9,2.50216454]
[1749200176503,0.81165,2463.0,2462.9,0.07133351]
[1749200176912,2.10935,2463.0,2462.9,0.07133351]
[1749200179321,0.81178,2462.6,2462.5,1.61917103]
[1749200179506,0.81178,2462.6,2462.4,1.61917103]
[1749200179507,0.81181,2462.5,2462.4,1.61917103]
[1749200179712,0.81184,2462.4,2462.3,1.61917103]
[1749200180315,0.81184,2462.4,2462.3,2.43105103]
[1749200180615,0.81184,2462.4,2462.3,1.61917103]
[1749200181612,0.81188,2462.3,2462.2,2.43105103]
[1749200184416,0.81187,2462.4,2462.3,0.81188]
[1749200185617,0.81182,2462.5,2462.4,0.81181]
[1749200185822,0.81184,2462.5,2462.4,0.81183]
[1749200187821,0.81184,2462.4,2462.3,1.45116]
[1749200189815,0.81184,2462.4,2462.1,9.91476519]
[1749200189816,3.2078,2462.4,2462.1,2.30017103]
[1749200190020,0.6339,2462.3,2462.1,3.77009103]
[1749200190220,0.6339,2462.3,2462.1,2.95817103]
[1749200190422,0.6339,2462.3,2462.1,3.77009103]
[1749200190926,0.6339,2462.3,2462.2,0.81191]
[1749200193235,1.44578,2462.3,2462.2,0.81191]
[1749200193429,0.6339,2462.3,2462.2,0.81191]
[1749200193622,1.44578,2462.3,2462.2,0.81191]
[1749200194428,1.44578,2462.3,2462.2,0.88324351]
[1749200194627,0.6339,2462.3,2462.2,0.88324351]
[1749200195431,1.44578,2462.3,2462.2,0.88324351]
[1749200198429,0.6339,2462.3,2462.2,0.88324351]
[1749200198625,1.44578,2462.3,2462.2,0.88324351]
[1749200199227,0.6339,2462.3,2462.2,0.88324351]
[1749200199631,0.81187,2462.4,2462.3,0.81188]
[1749200199832,0.81188,2462.3,2462.2,0.88322351]
[1749200200331,0.81188,2462.3,2462.2,0.07133351]
[1749200201635,0.81188,2462.3,2462.2,0.88324351]
[1749200201827,0.81188,2462.3,2462.2,0.07133351]
[1749200204036,0.81188,2462.3,2462.2,0.88324351]
[1749200205434,0.81188,2462.3,2462.2,0.07133351]
[1749200207639,0.81188,2462.3,2462.2,1.69050454]
[1749200211351,0.81188,2462.3,2462.2,0.07133351]
[1749200211656,0.81188,2462.3,2462.2,1.69343859]
[1749200211848,0.81188,2462.3,2462.2,1.69345317]
[1749200212356,0.81188,2462.3,2462.2,2.50536317]
[1749200212546,0.81188,2462.3,2462.2,0.88324351]
[1749200213355,0.81188,2462.3,2462.2,3.3091487]
[1749200213554,0.81188,2462.3,2462.2,4.6391487]
[1749200216355,0.81188,2462.3,2462.2,2.4972387]
[1749200217154,0.81188,2462.3,2462.2,3.3091487]
[1749200219152,0.81188,2462.3,2462.2,2.4972387]
[1749200219455,0.81188,2462.3,2462.2,3.3091487]
[1749200219651,0.81188,2462.3,2462.2,2.4972387]
[1749200219856,0.81188,2462.3,2462.2,1.69386728]
[1749200220056,0.81188,2462.3,2462.2,0.07133351]
[1749200220252,0.81188,2462.3,2462.2,1.69373935]
[1749200220652,0.81188,2462.3,2462.2,0.07133351]
[1749200221856,0.81188,2462.3,2462.2,2.4972387]
[1749200223552,3.8866,2463.0,2462.3,2.0297]
[1749200223753,1.46801,2462.8,2462.7,1.62119646]
[1749200223953,1.46801,2462.8,2462.5,5.6395947]
[1749200223954,0.81174,2462.7,2462.6,2.27437064]
[1749200225363,0.81174,2462.7,2462.6,3.08615064]
[1749200225560,0.81174,2462.8,2462.7,0.81173]
[1749200225863,0.81174,2462.8,2462.7,3.81253676]
[1749200226061,0.81174,2462.8,2462.7,4.49453676]
[1749200226265,0.81174,2462.8,2462.7,2.87503]
[1749200226466,0.81174,2462.8,2462.7,4.49453676]
[1749200227258,0.81174,2462.8,2462.7,2.87503]
[1749200228165,0.81174,2462.8,2462.7,2.0633]
[1749200228660,0.81174,2462.8,2462.7,2.87504]
[1749200230866,0.81174,2462.8,2462.7,2.0633]
[1749200231071,0.81174,2462.8,2462.7,2.87504]
[1749200235272,0.81165,2463.0,2462.9,0.81165]
[1749200235572,0.81163,2463.1,2463.0,0.81165]
[1749200236570,0.81163,2463.1,2463.0,1.50215]
[1749200237172,0.81163,2463.1,2463.0,2.85545]
[1749200237973,0.81163,2463.1,2463.0,2.0438]
[1749200240173,0.81163,2463.1,2463.0,2.11513351]
[1749200240473,0.81163,2463.1,2463.0,2.92678351]
[1749200240771,0.81163,2463.1,2463.0,2.11513351]
[1749200241375,0.81163,2463.1,2463.0,2.92678351]
[1749200241570,0.81163,2463.1,2463.0,2.11513351]
[1749200244270,0.81163,2463.1,2463.0,0.76183351]
[1749200251373,0.81163,2463.1,2463.0,0.07133351]
[1749200251579,5.58263,2463.1,2463.0,0.07133351]
[1749200251770,0.81178,2462.6,2462.5,1.61950676]
[1749200251969,19.34078,2462.6,2462.5,1.61950676]
[1749200253973,0.81181,2462.5,2462.4,2.4317947]
[1749200254878,0.81181,2462.5,2462.4,1.6192933]
[1749200255080,0.81184,2462.4,2462.3,1.6192933]
[1749200255481,0.81188,2462.3,2462.2,1.6192933]
[1749200255778,1.46528,2462.3,2462.2,1.6192933]
[1749200257474,4.67308,2462.3,2462.2,1.6192933]
[1749200257678,0.81191,2462.2,2462.1,2.2680933]
[1749200258781,0.81191,2462.2,2462.1,3.0800333]
[1749200260284,0.81191,2462.2,2462.1,3.8925347]
[1749200260692,0.81191,2462.2,2462.1,3.07820408]
[1749200261472,0.81191,2462.2,2462.1,2.26626408]
[1749200262879,0.81191,2462.2,2462.1,3.07820408]
[1749200263282,0.81191,2462.2,2462.1,1.46074]
[1749200263482,0.81191,2462.2,2462.1,3.07820408]
[1749200263688,0.81191,2462.2,2462.1,1.46074]
[1749200267889,1.4653,2462.3,2462.2,0.81191]
[1749200268085,1.4653,2462.3,2462.2,1.49021]
[1749200269793,1.4653,2462.3,2462.2,1.56154351]
[1749200278304,1.4653,2462.3,2462.2,3.17900759]
[1749200280799,19.3399,2462.3,2462.2,3.17900759]
[1749200281202,19.3399,2462.3,2462.2,1.56154351]
[1749200281406,19.3399,2462.3,2462.2,3.99333821]
[1749200284304,19.3399,2462.3,2462.2,1.56154351]
[1749200284501,0.8119,2462.3,2462.2,3.99572739]
[1749200284703,0.8119,2462.3,2462.2,1.56154351]
[1749200286103,0.8119,2462.3,2462.2,0.74963351]
[1749200286610,0.8119,2462.3,2462.2,3.99575486]
[1749200287512,0.8119,2462.3,2462.2,2.50554486]
[1749200287810,2.0933,2462.3,2462.2,1.69481244]
[1749200288006,0.81191,2462.2,2462.1,1.62347893]
[1749200288207,5.98561,2462.2,2462.1,1.62347893]
[1749200288404,0.81197,2462.0,2461.9,2.44029568]
[1749200288606,1.71032343,2462.0,2461.9,0.00608433]
[1749200291111,0.81197,2462.0,2461.9,0.00608433]
[1749200300224,0.81197,2462.0,2461.9,0.07741784]
[1749200302418,0.81197,2462.1,2462.0,0.81195]